Workbook

Sheet platy obvyklé
C1: Příloha č. 1
A3: Obvyklé mzdy/platy pro realizaci projektů v rámci OP VK na území Jihočeského kraje pro rok 2013
A5: Pracovní pozice | B5: Hrubý měsíční plat/mzda v Kč na 100% úvazek (40 hod/týden) | C5: Hrubý hodinový plat/mzda v Kč
B6: horní hranice | C6: horní hranice
A7: Manažer projektu (koordinátor projektu) | B7: 47279 | C7: 295
A8: Věcný manažer (manažer aktivity) | B8: 40548 | C8: 253
A9: Finanční manažer projektu | B9: 39170 | C9: 245
A10: Metodik | B10: 40023 | C10: 250
A11: Učitelé základních škol | B11: 29218 | C11: 183
A12: Učitelé všeobecně vzdělávacích předmětů - SŠ | B12: 31424 | C12: 196
A13: Učitelé odborných předmětů - SŠ | B13: 31491 | C13: 197
A14: Lektor | B14: 49025 | C14: 306
A15: Vědecko-pedagogičtí pracovníci | B15: 47012 | C15: 294
A16: ICT technik | B16: 37310 | C16: 233
A17: Psycholog | B17: 38135 | C17: 238
A18: Sociální pracovník | B18: 30840 | C18: 193
A19: Speciální pedagog | B19: 28032 | C19: 175
A20: Asistent pedagoga | B20: 18131 | C20: 113
A21: Ověřovatelé (hodnotitelé) výukových materiálů | B21: 28622 | C21: 179
A22: Odborní řešitelé | B22: 27639 | C22: 173
A23: Korektor výukových materiálů | B23: 23243 | C23: 145
A25: Obvyklé mzdy/platy pro realizaci projektů v rámci OP VK na území ČR pro rok 2013
A26: Individuální projekty ostatní (IPo)
A28: Pracovní pozice | B28: Hrubý měsíční plat/mzda v Kč na 100% úvazek (40 hod/týden) | C28: Hrubý hodinový plat/mzda v Kč
B29: horní hranice | C29: horní hranice
A30: pedagogičtí pracovníci VaV VŠ | B30: 37633 | C30: 235
A31: profesor VŠ | B31: 63103 | C31: 394
A32: docent VŠ | B32: 47828 | C32: 299
A33: odborný asistent VŠ | B33: 32565 | C33: 204
A34: asistent VŠ | B34: 25240 | C34: 158
A35: Manažer projektu (koordinátor projektu) | B35: 51451 | C35: 322
A36: Věcný manažer (manažer aktivity) | B36: 47604 | C36: 298
A37: Finanční manažer projektu | B37: 46501 | C37: 291
A38: Metodik | B38: 38789 | C38: 242
A39: Učitelé základních škol | B39: 31936 | C39: 200
A40: Učitelé všeobecně vzdělávacích předmětů - SŠ | B40: 37575 | C40: 235
A41: Učitelé odborných předmětů - SŠ | B41: 37649 | C41: 235
A42: Lektor | B42: 58160 | C42: 364
A43: Vědecko-pedagogičtí pracovníci | B43: 55760 | C43: 349
A44: ICT technik | B44: 42632 | C44: 266
A45: Psycholog | B45: 54010 | C45: 338
A46: Sociální pracovník | B46: 36260 | C46: 227
A47: Speciální pedagog | B47: 28800 | C47: 180
A48: Asistent pedagoga | B48: 17600 | C48: 110
A49: Ověřovatelé (hodnotitelé) výukových materiálů | B49: 30000 | C49: 188
A50: Odborní řešitelé | B50: 28000 | C50: 175
A51: Korektor výukových materiálů | B51: 28000 | C51: 175
A53: Zdroj:
A54: Metodický dopis OP VK č. 4.4/2013

Sheet AUTO
D1: Příloha č. 2
A3: Kalkulace nákladů spojených s provozem služebních vozidel
E5: v Kč
C6: pro rok 2013
B7: Reg. značka vozidla | C7: 4C8 5555 | D7: 3C1 7030 | E7: 6C3 3264
A8: 1. Spotřeba PHM a náklady na provoz vozidla | B8: Zdroj pro kalkulaci
A10: průměrná spotřeba v l/100 km | B10: technický průkaz vozidla | C10: 12.05 | D10: 6.45 | E10: 7.4
A11: průměrná cena PHM Nat 95/1 litr | B11: z vyhlášky o průměrných cenách na příslušný rok | C11: 36.1 | D11: 36.1 | E11: 36.1
A12: spotřeba PHM na 1 km | B12: prům. spotřeba*průměrná cena/100 | C12: =C11*C10/100 -> 4.35005 | D12: =D11*D10/100 -> 2.32845 | E12: =E11*E10/100 -> 2.6714
A13: materiál a opravy/ 1 km | B13: na 1 km z nákladů za uplynulý rok | C13: =C32 -> 2.37 | D13: =D32 -> 1.19 | E13: =E32 -> 0
A14: celkem cena/1 km | C14: =SUM(C12:C13) -> 6.72005 | D14: =SUM(D12:D13) -> 3.51845 | E14: =SUM(E12:E13) -> 2.6714
A15: počet km | C15: 0 | D15: 0 | E15: 0
A17: CELKEM za spotřebu PHM | C17: =C14*C15 -> 0 | D17: =D14*D15 -> 0 | E17: =E14*E15 -> 0
A19: 2. Náklady na řidiče
A20: počet hodin řidiče | C20: 0 | D20: 0 | E20: 0
A21: mzda/1 hod | B21: ze mzdové účtárny | C21: 0 | D21: 0 | E21: 0
A22: cestovní náhrady | C22: 0 | D22: 0 | E22: 0
A24: CELKEM náklady za řidiče | C24: =SUM(C20*C21,C22) -> 0 | D24: =SUM(D20*D21,D22) -> 0 | E24: =SUM(E20*E21,E22) -> 0
A26: CELKEM | C26: =SUM(C17,C24) -> 0 | D26: =SUM(D17,D24) -> 0 | E26: =SUM(E17,E24) -> 0
A28: Kalkulace materiálu a oprav | C28: pro rok 2013
C29: 4C8 5555 | D29: 2C4 5555 | E29: 3C1 7030
A30: náklady na materiál a opravy | C30: 79679 | D30: 21214 | E30: 0
A31: počet ujetých km | C31: 33600 | D31: 17900 | E31: 0
A32: náklady na 1 km | C32: =ROUND(C30/C31,2) -> 2.37 | D32: =ROUND(D30/D31,2) -> 1.19 | E32: 0

Sheet kacelář_laboratoř
E1: Příloha č. 3
A3: Kalkulace nákladů využívané plochy v budovách JU pro rok 2013
A5: Kancelář: 1m2 využívané plochy v budovách JU - základna - budova REKTORÁT
B6: v Kč
B7: náklady za rok 2012
A8: Voda | B8: 78081
A9: Elektřina | B9: 752661
A10: Teplo a chlad | B10: 139202
A11: Úklid | B11: 265000
A12: Pronájem a čištění rohoží | B12: 5000
A13: Mytí oken | B13: 65000
A14: Hygienické prostředky | B14: 60000
A15: PCO | B15: 230000
A16: A.S.A. | B16: 30000
A17: Revize výtahů (4x ročně) | B17: 20000
A18: Revize EPS a EZS (2x ročně) | B18: 30000
A19: Revize SOZ (2x ročně) | B19: 10000
A20: Revize vzduchotechnika a klimatizace (4x ročně) | B20: 47000
A21: Revize hydrantů a has. Přístrojů (1x ročně) | B21: 5000
A22: Revize dieselagregátu (1x ročně) | B22: 10000
A23: SPH elektro (12 x ročně) | B23: 10000
A24: Náklady spojené s provozem | B24: 90000
A25: Ostatní náklady | B25: 70000
A26: Roční osobní náklady pracovníků správy budov pro rektorát | B26: 279832
A27: CELKEM roční náklady | B27: =SUM(B8:B26) -> 2196776
A28: Plocha Rektorátu v m2 | B28: 2203.38
A29: náklady na 1 m2
A30: roční | B30: =B27/B28 -> 997.0027866
A31: měsíční | B31: =B30/12 -> 83.08356555
A32: denní | B32: =B30/252 -> 3.956360264
A33: hodinové | B33: =B32/8 -> 0.494545033
A35: Zasedací místnost
B36: v Kč
A37: AV technika - pořizovací cena | B37: =1970922+9995 -> 1980917
A38: životnost v létech | B38: 6
A39: roční podíl | B39: =B37/B38 -> 330152.8333
A40: měsíční podíl | B40: =B39/12 -> 27512.73611
A41: denní podíl (průměrný počet dnů 30,41) | B41: =B40/30.41 -> 904.7266067
A42: hodinový podíl | B42: =B41/8 -> 113.0908258
A44: Kalkulace nákladů spojených s využitím laboratorních přístrojů
B45: v Kč
A46: Pořizovací cena přístroje | B46: 0
A47: Životnost v hodinách | B47: 0.01
A48: Náklady na 1 hodinu provozu | B48: =B46/B47 -> 0

Sheet kopírování
D1: Příloha č. 4
A3: Kalkulace nákladů spojených s tiskem a kopírováním dokumentů
A5: základna: | B5: kopírovací stroj Minolta bizhub C 203
D6: v Kč
A7: Pořizovací cena | D7: 79561.5
A8: životnost stroje - počet kopií | D8: 1000000
A9: Pořizovací náklady/1 kopie/1 strana | B9: PC/životnost | D9: =D7/D8 -> 0.0795615
A10: Platby na základě smlouvy č. 42415290 Minolta(toner a papír): | C10: čb kopie | D10: 0.44
C11: barevná kopie | D11: 1.85
A13: Kalkulovaná cena 1 strany | B13: A4 | C13: čb kopie | D13: =SUM(D9,D10) -> 0.5195615
B14: A4 | C14: barevná kopie | D14: =SUM(D9,D11) -> 1.9295615
B15: A3 | C15: čb kopie | D15: =D13*2 -> 1.039123
B16: A3 | C16: barevná kopie | D16: =D14*2 -> 3.859123

Sheet občerstvení
C1: Příloha č. 5
A3: Kalkulace nákladů spojených nákupem občerstvení
A5: Na základě požadavku na zajištění občerstvení jsou ceny kalkulovány dle pravidel podílu potravin a ostatních druhů nákladů následovně:
A7: Součást nákladů | B7: Podíl v %
A8: Potraviny | B8: 59.28
A9: Energie | B9: 4.35
A10: Osobní náklad | B10: 25.01
A11: Odpisy | B11: 2.03
A12: DHM | B12: 0.4
A13: Materiál všeobecný | B13: 3.19
A14: Ostatní | B14: 5.74
A15: Celkem | B15: =SUM(B8:B14) -> 100

Sheet Stravování
F1: Příloha č. 6
A3: Kalkulace nákladů spojených nákupem stravovacích služeb
A5: Ceník KaM za hotová jídla
A7: Snídaně | C7: 31
A8: Polévka | C8: 5
A9: Oběd | B9: 1 | C9: 48
B10: 2 | C10: 52
B11: 3 | C11: 56
B12: 4 | C12: 48
B13: 5 | C13: 52
B14: 6 | C14: 56
B15: 7 | C15: 56
A16: Specialita | C16: 73
A17: Pizza | C17: 73
A18: Dieta | C18: 73
A19: Večeře | C19: 56
A20: Bageta | B20: 1 | C20: 20
B21: 2 | C21: 25
B22: 3 | C22: 28
A23: Minutka | C23: 65
A24: Doplněk | B24: 1 | C24: 3
B25: 2 | C25: 5
B26: 3 | C26: 7
B27: 4 | C27: 9
B28: 5 | C28: 12

Sheet Ubytování
F1: Příloha č. 7
A3: Kalkulace nákladů spojených s ubytováním
A5: Ceník KaM
A6: Krátkodobý pronájem za lůžko | C6: Denní sazba v Kč
A7: Budova | C7: obsazeno 1 osobou | D7: obsazeno 2 a více osobami
A8: K1 - K3 | C8: - | D8: 110
A9: K4-K6 | C9: - | D9: 130
A10: Bobík | C10: 290 | D10: 180
A12: Dlouhodobý pronájem za lůžko - nejméně nž 3 týdny | C12: Denní sazba v Kč | E12: Měsíční sazba v Kč
A13: Budova | B13: druh pokoje | C13: obsazeno 1 osobou | D13: obsazeno 2 a více osobami | E13: obsazeno 1 osobou | F13: obsazeno 2 a více osobami
A14: K1 - K3 | B14: dvoulůžkový | C14: 100 | D14: 80 | E14: 3000 | F14: 1800
A15: K4-K6, Bobík | B15: dvoulůžkový | C15: 125 | D15: 95 | E15: 3750 | F15: 2100
A16: K5-K6, Bobík | B16: třílůžkový | C16: 125 | D16: 90 | E16: 3750 | F16: 1980
A17: K6 | B17: jednolůžkový | C17: - | D17: 115 | E17: - | F17: 2500
A18: Bobík | B18: jednolůžkový | C18: - | D18: 125 | E18: - | F18: 3750

Sheet překlady a tlumočení
B1: Příloha č. 8
A3: Kalkulace nákladů spojených s překladatelské a tlumočnické služby
B4: v Kč
A5: průměrné osobní náklady na 1 hodinu práce pracovníka | B5: 200
A6: doba překladu 1 normostrany | B6: 1h
A8: cena 1 normostrany | B8: =B5 -> 200
A9: cena 1 normostrany vč. korektury rodilým mluvčím | B9: =B5+0.5*B5 -> 300
A10: tlumočení 1 hodina | B10: =B5 -> 200

Sheet Pracovní výkaz
A1: Příloha č. 9
A2: Pracovní výkaz pro vykázání režijních osobních nákladů na projekt
A6: Registrační číslo projektu
A7: Název projektu
A8: Příjemce | E8: Jihočeská univerzita v Českých Budějovicích
A10: Jméno a příjmení
A11: oddělení JU
A12: Pracovní zařazení dle bodu a) metodiky
A13: Období
A15: Přehled měsíčních pracovních činností
A16: datum | B16: Počet odprac. hodin | D16: Popis vykonaných aktivit | H16: datum | I16: Počet odprac. hodin | K16: Popis vykonaných aktivit
A31: Počet hodin | B31: =SUM(B17:C30) -> 0 | H31: Počet hodin celkem | I31: =SUM(I17:J30) -> 0
A33: Součet hodin souvisejících s projektem | J33: =SUM(B31,I31) -> 0 | M33: hodin
B35: Datum: | C35: Jméno a příjmení: | F35: Podpis: | H35: Kontroloval: | J35: Datum: | K35: Jméno a příjmení: | M35: Podpis:
A36: Vypracoval:
A38: Přeúčtování nákladů:
B39: NS | C39: TA | D39: název akce v iFIS | J39: KP
A40: z akce
A41: na projekt
A44: Vyplňujte pouze bílé buňky

Sheet Celkové náklady
L1: Příloha č. 10
A2: Celkové režijní náklady bez nákladů na odměňování pracovníků
A4: Registrační číslo projektu
A5: Název projektu
A6: Období
A7: Fakulta
A9: Kalkulace celkových režijních nákladů bez osobních
A10: položka | B10: Počet | C10: cena za jednotku | D10: celkem | E10: poznámka
A22: celkem | D22: =SUM(D11:D21) -> 0
B24: Datum | C24: Jméno a příjmení | E24: Podpis
A25: Vypracoval
A27: Přeúčtování | B27: název akce v IFIS | E27: TA | F27: KP | K27: NS
A28: akce
A29: na projekt
